[Event "*** Titled Tuesday Blitz"]
[Site "Chess.com"]
[Date "2021.03.30"]
[Round "9"]
[White "olksuna"]
[Black "jcibarra"]
[Result "0-1"]
[WhiteElo "2688"]
[BlackElo "2855"]
[TimeControl "180+1"]
[EndTime "11:47:13 PDT"]
[Termination "jcibarra won on time"]

1. e4 {[%clk 0:03:00.9]} 1... c5 {[%clk 0:02:56.9]} 2. Nf3 {[%clk 0:03:00.4]}
2... Nc6 {[%clk 0:02:54.8]} 3. d4 {[%clk 0:03:00.4]} 3... cxd4 {[%clk
0:02:55.1]} 4. Nxd4 {[%clk 0:03:01.3]} 4... e5 {[%clk 0:02:55]} 5. Nf5 {[%clk
0:03:00.8]} 5... d5 {[%clk 0:02:51.7]} 6. Qxd5 {[%clk 0:02:59.9]} 6... Qxd5
{[%clk 0:02:51.4]} 7. exd5 {[%clk 0:03:00.8]} 7... Bxf5 {[%clk 0:02:51]} 8. dxc6
{[%clk 0:03:01.3]} 8... bxc6 {[%clk 0:02:50.8]} 9. Bd3 {[%clk 0:03:01.9]} 9...
Bxd3 {[%clk 0:02:49.4]} 10. cxd3 {[%clk 0:03:02.8]} 10... Bd6 {[%clk 0:02:29.6]}
11. Ke2 {[%clk 0:02:59.6]} 11... Ne7 {[%clk 0:02:29.5]} 12. Be3 {[%clk
0:02:56.5]} 12... Rb8 {[%clk 0:02:24.9]} 13. b3 {[%clk 0:02:53.7]} 13... a5
{[%clk 0:02:21.7]} 14. Nc3 {[%clk 0:02:49.1]} 14... Nd5 {[%clk 0:02:06.6]} 15.
Na4 {[%clk 0:02:30.2]} 15... Ba3 {[%clk 0:02:02.5]} 16. Bc1 {[%clk 0:02:23.5]}
16... Bb4 {[%clk 0:01:57.4]} 17. Be3 {[%clk 0:02:15.3]} 17... Ba3 {[%clk
0:01:56.6]} 18. Bc1 {[%clk 0:02:13.6]} 18... Be7 {[%clk 0:01:36.9]} 19. Be3
{[%clk 0:02:06.5]} 19... Kd7 {[%clk 0:01:32]} 20. Rhc1 {[%clk 0:02:05]} 20...
Ba3 {[%clk 0:01:29.5]} 21. Rc4 {[%clk 0:02:03]} 21... f5 {[%clk 0:01:28.1]} 22.
g3 {[%clk 0:01:58.3]} 22... Rhe8 {[%clk 0:01:27.2]} 23. Bc5 {[%clk 0:01:53.6]}
23... Bb4 {[%clk 0:01:21.4]} 24. Rac1 {[%clk 0:01:47.5]} 24... Rec8 {[%clk
0:01:15.2]} 25. h4 {[%clk 0:01:25.3]} 25... Rb5 {[%clk 0:01:01.5]} 26. Kf3
{[%clk 0:01:18.5]} 26... Bxc5 {[%clk 0:00:57]} 27. Rxc5 {[%clk 0:01:00.7]} 27...
Rc7 {[%clk 0:00:43.6]} 28. Re1 {[%clk 0:00:52.1]} 28... Kd6 {[%clk 0:00:41.1]}
29. Rec1 {[%clk 0:00:24.9]} 29... Nb4 {[%clk 0:00:38.8]} 30. Rxb5 {[%clk
0:00:24.9]} 30... cxb5 {[%clk 0:00:38.6]} 31. Rxc7 {[%clk 0:00:25.5]} 31... Kxc7
{[%clk 0:00:38.2]} 32. Nc3 {[%clk 0:00:26.1]} 32... Kc6 {[%clk 0:00:31.8]} 33.
Ke2 {[%clk 0:00:18.7]} 33... Kc5 {[%clk 0:00:31]} 34. h5 {[%clk 0:00:16.2]}
34... Nc6 {[%clk 0:00:29.6]} 35. Ke3 {[%clk 0:00:13.4]} 35... Kb4 {[%clk
0:00:20.8]} 36. Nb1 {[%clk 0:00:11.7]} 36... Ne7 {[%clk 0:00:16.4]} 37. Kd2
{[%clk 0:00:05.1]} 37... Nd5 {[%clk 0:00:14.9]} 38. Kc2 {[%clk 0:00:05.5]} 38...
Nf6 {[%clk 0:00:14.2]} 39. h6 {[%clk 0:00:04.8]} 39... gxh6 {[%clk 0:00:13.9]}
40. a3+ {[%clk 0:00:02.9]} 40... Kc5 {[%clk 0:00:14]} 41. Kd2 {[%clk 0:00:02.7]}
41... h5 {[%clk 0:00:14.2]} 42. Nc3 {[%clk 0:00:01.3]} 42... b4 {[%clk
0:00:12.4]} 0-1

[Event "*** Titled Tuesday Blitz"]
[Site "Chess.com"]
[Date "2021.03.30"]
[Round "9"]
[White "VladaSviridova"]
[Black "Maddie"]
[Result "0-1"]
[WhiteElo "2224"]
[BlackElo "2081"]
[TimeControl "180+1"]
[EndTime "11:47:15 PDT"]
[Termination "Maddie won on time"]

1. d4 {[%clk 0:03:00.9]} 1... d5 {[%clk 0:02:58.8]} 2. c4 {[%clk 0:02:59.1]}
2... c6 {[%clk 0:02:56.8]} 3. Nf3 {[%clk 0:02:58.9]} 3... Nf6 {[%clk 0:02:57.3]}
4. Nc3 {[%clk 0:02:58.5]} 4... e6 {[%clk 0:02:56.7]} 5. e3 {[%clk 0:02:58.5]}
5... Bb4 {[%clk 0:02:54.7]} 6. Bd3 {[%clk 0:02:54.4]} 6... O-O {[%clk
0:02:54.3]} 7. O-O {[%clk 0:02:54]} 7... Nbd7 {[%clk 0:02:52.2]} 8. Qc2 {[%clk
0:02:50.1]} 8... dxc4 {[%clk 0:02:50.3]} 9. Bxc4 {[%clk 0:02:50.1]} 9... Nb6
{[%clk 0:02:47]} 10. Bd3 {[%clk 0:02:49.4]} 10... Nbd5 {[%clk 0:02:46.6]} 11. a3
{[%clk 0:02:49.6]} 11... Ba5 {[%clk 0:02:40.4]} 12. e4 {[%clk 0:02:45.4]} 12...
Nxc3 {[%clk 0:02:39.8]} 13. bxc3 {[%clk 0:02:45.5]} 13... h6 {[%clk 0:02:36.7]}
14. e5 {[%clk 0:02:34.9]} 14... Nd5 {[%clk 0:02:35.9]} 15. c4 {[%clk 0:02:34.8]}
15... Nb6 {[%clk 0:02:34.2]} 16. Rd1 {[%clk 0:02:29.2]} 16... Nd7 {[%clk
0:02:28.4]} 17. c5 {[%clk 0:02:24.6]} 17... b6 {[%clk 0:02:26.1]} 18. cxb6
{[%clk 0:02:20.9]} 18... Qxb6 {[%clk 0:02:23.4]} 19. Rb1 {[%clk 0:02:19.5]}
19... Qc7 {[%clk 0:02:22.2]} 20. Bf4 {[%clk 0:02:09.6]} 20... Nb6 {[%clk
0:02:21.7]} 21. Be4 {[%clk 0:01:55.6]} 21... Nd5 {[%clk 0:02:18.9]} 22. Bxd5
{[%clk 0:01:47.5]} 22... cxd5 {[%clk 0:02:19.8]} 23. Qxc7 {[%clk 0:01:33.8]}
23... Bxc7 {[%clk 0:02:19]} 24. Rdc1 {[%clk 0:01:34.4]} 24... Bb6 {[%clk
0:02:19.3]} 25. Bd2 {[%clk 0:01:22.9]} 25... Ba6 {[%clk 0:02:18.9]} 26. a4
{[%clk 0:01:18.4]} 26... Rfc8 {[%clk 0:02:16.3]} 27. a5 {[%clk 0:01:16.3]} 27...
Bd8 {[%clk 0:02:12.7]} 28. h3 {[%clk 0:01:00.9]} 28... Rxc1+ {[%clk 0:01:59.9]}
29. Rxc1 {[%clk 0:01:00.1]} 29... Rc8 {[%clk 0:01:59.5]} 30. Rxc8 {[%clk
0:00:42.3]} 30... Bxc8 {[%clk 0:01:58.3]} 31. Bb4 {[%clk 0:00:42]} 31... Ba6
{[%clk 0:01:49.3]} 32. g3 {[%clk 0:00:39.5]} 32... f6 {[%clk 0:01:48.3]} 33.
exf6 {[%clk 0:00:23]} 33... gxf6 {[%clk 0:01:47.7]} 34. h4 {[%clk 0:00:21.4]}
34... Kf7 {[%clk 0:01:45]} 35. Kg2 {[%clk 0:00:20.6]} 35... Bc7 {[%clk
0:01:41.7]} 36. Nd2 {[%clk 0:00:20.2]} 36... Bc4 {[%clk 0:01:35.1]} 37. Nxc4
{[%clk 0:00:19.1]} 37... dxc4 {[%clk 0:01:35.1]} 38. Kf3 {[%clk 0:00:19.4]}
38... e5 {[%clk 0:01:33.1]} 39. dxe5 {[%clk 0:00:19]} 39... Bxe5 {[%clk
0:01:33.2]} 40. Ke4 {[%clk 0:00:15.8]} 40... a6 {[%clk 0:01:33.1]} 41. Kd5
{[%clk 0:00:13.7]} 41... c3 {[%clk 0:01:32.5]} 42. Ba3 {[%clk 0:00:10.8]} 42...
c2 {[%clk 0:01:28.4]} 43. Bc1 {[%clk 0:00:10.6]} 43... Bc7 {[%clk 0:01:22.8]}
44. Kc4 {[%clk 0:00:10.7]} 44... Bxa5 {[%clk 0:01:22.5]} 45. Kd3 {[%clk
0:00:11.1]} 45... Bb6 {[%clk 0:01:19.9]} 46. f3 {[%clk 0:00:10.8]} 46... Bc7
{[%clk 0:01:19.1]} 47. g4 {[%clk 0:00:10.4]} 47... f5 {[%clk 0:01:15.2]} 48.
Kxc2 {[%clk 0:00:09.7]} 48... fxg4 {[%clk 0:01:14.9]} 49. fxg4 {[%clk
0:00:09.8]} 49... Kg6 {[%clk 0:01:15.1]} 50. Kd3 {[%clk 0:00:09.6]} 50... Bg3
{[%clk 0:01:12.4]} 51. h5+ {[%clk 0:00:09.3]} 51... Kg7 {[%clk 0:01:11.6]} 52.
Ke4 {[%clk 0:00:09.6]} 52... a5 {[%clk 0:01:10]} 53. Bb2+ {[%clk 0:00:09.9]}
53... Kf7 {[%clk 0:01:09]} 54. Kf5 {[%clk 0:00:10.1]} 54... Bd6 {[%clk
0:00:59.5]} 55. Bc1 {[%clk 0:00:07.1]} 55... Bf8 {[%clk 0:00:58.5]} 56. Bb2
{[%clk 0:00:06.5]} 56... a4 {[%clk 0:00:58.7]} 57. Bc3 {[%clk 0:00:05.9]} 57...
a3 {[%clk 0:00:58.6]} 58. g5 {[%clk 0:00:02.6]} 58... hxg5 {[%clk 0:00:57.4]}
59. Kxg5 {[%clk 0:00:02.2]} 59... Bg7 {[%clk 0:00:54.8]} 0-1

[Event "*** Titled Tuesday Blitz"]
[Site "Chess.com"]
[Date "2021.03.30"]
[Round "9"]
[White "Zkid"]
[Black "Alexander_Zubov"]
[Result "1-0"]
[WhiteElo "2863"]
[BlackElo "2968"]
[TimeControl "180+1"]
[EndTime "11:47:16 PDT"]
[Termination "Zkid won by resignation"]

1. e4 {[%clk 0:03:00.9]} 1... c5 {[%clk 0:02:57.1]} 2. Nf3 {[%clk 0:03:00.2]}
2... e6 {[%clk 0:02:56.1]} 3. d4 {[%clk 0:03:00.2]} 3... cxd4 {[%clk 0:02:56.6]}
4. Nxd4 {[%clk 0:03:01.1]} 4... a6 {[%clk 0:02:56.9]} 5. c4 {[%clk 0:03:00.9]}
5... Nf6 {[%clk 0:02:56.5]} 6. Nc3 {[%clk 0:03:00.8]} 6... Bb4 {[%clk
0:02:56.3]} 7. Qd3 {[%clk 0:03:00.5]} 7... Qc7 {[%clk 0:02:53.4]} 8. a3 {[%clk
0:02:55.2]} 8... Be7 {[%clk 0:02:51.6]} 9. f4 {[%clk 0:02:49]} 9... O-O {[%clk
0:02:41.5]} 10. e5 {[%clk 0:02:47.4]} 10... Ne8 {[%clk 0:02:40.9]} 11. Be2
{[%clk 0:02:32.8]} 11... d6 {[%clk 0:02:39.9]} 12. Qg3 {[%clk 0:02:28.5]} 12...
Nd7 {[%clk 0:02:27.7]} 13. Nf3 {[%clk 0:02:06.2]} 13... b6 {[%clk 0:01:58.3]}
14. O-O {[%clk 0:02:02.3]} 14... Bb7 {[%clk 0:01:57.3]} 15. Be3 {[%clk
0:01:57.1]} 15... Rc8 {[%clk 0:01:55.3]} 16. Rad1 {[%clk 0:01:51.2]} 16... dxe5
{[%clk 0:01:34.4]} 17. Nxe5 {[%clk 0:01:42.2]} 17... Nef6 {[%clk 0:01:32.5]} 18.
b4 {[%clk 0:01:24.7]} 18... Nxe5 {[%clk 0:01:09.4]} 19. fxe5 {[%clk 0:01:23.4]}
19... Ne4 {[%clk 0:01:10]} 20. Nxe4 {[%clk 0:01:13.3]} 20... Bxe4 {[%clk
0:01:10.9]} 21. h4 {[%clk 0:01:11.4]} 21... Rcd8 {[%clk 0:00:53.4]} 22. Rxd8
{[%clk 0:01:05.1]} 22... Qxd8 {[%clk 0:00:46.7]} 23. h5 {[%clk 0:01:01.6]} 23...
Kh8 {[%clk 0:00:43.5]} 24. h6 {[%clk 0:00:53.8]} 24... gxh6 {[%clk 0:00:38.4]}
25. Bf3 {[%clk 0:00:45.8]} 25... Rg8 {[%clk 0:00:34.2]} 26. Qf2 {[%clk
0:00:41.3]} 26... Bxf3 {[%clk 0:00:28.2]} 27. Qxf3 {[%clk 0:00:41.2]} 27... Bg5
{[%clk 0:00:28.9]} 28. Bf2 {[%clk 0:00:31.5]} 28... Qc7 {[%clk 0:00:23]} 29. c5
{[%clk 0:00:23.2]} 29... bxc5 {[%clk 0:00:20.6]} 30. bxc5 {[%clk 0:00:24.1]}
30... Qxe5 {[%clk 0:00:18.7]} 31. Qxf7 {[%clk 0:00:23.6]} 31... Be3 {[%clk
0:00:12.9]} 32. Re1 {[%clk 0:00:19.3]} 32... Qg5 {[%clk 0:00:05.6]} 33. Qf3
{[%clk 0:00:18.2]} 33... Bxf2+ {[%clk 0:00:04.3]} 34. Qxf2 {[%clk 0:00:19.1]}
34... Rd8 {[%clk 0:00:02.4]} 35. Rb1 {[%clk 0:00:14]} 35... Kg8 {[%clk
0:00:02.1]} 36. c6 {[%clk 0:00:13.7]} 36... Rc8 {[%clk 0:00:01.6]} 37. Rb7
{[%clk 0:00:11.4]} 37... Qg6 {[%clk 0:00:01.4]} 38. Qd4 {[%clk 0:00:09.8]} 38...
e5 {[%clk 0:00:01.1]} 39. Qd5+ {[%clk 0:00:09.6]} 39... Kh8 {[%clk 0:00:01.5]}
40. Qxe5+ {[%clk 0:00:09.8]} 40... Kg8 {[%clk 0:00:02.2]} 41. c7 {[%clk
0:00:08.9]} 41... Qc6 {[%clk 0:00:01.6]} 42. Rb8 {[%clk 0:00:08]} 42... Qd7
{[%clk 0:00:02.1]} 43. Rxc8+ {[%clk 0:00:07.8]} 43... Qxc8 {[%clk 0:00:02.6]}
44. Qd5+ {[%clk 0:00:08.3]} 44... Kg7 {[%clk 0:00:03.2]} 45. Qd8 {[%clk
0:00:08.9]} 45... Qf5 {[%clk 0:00:03.2]} 46. c8=Q {[%clk 0:00:08.4]} 1-0

[Event "*** Titled Tuesday Blitz"]
[Site "Chess.com"]
[Date "2021.03.30"]
[Round "9"]
[White "GMKrikor"]
[Black "GelmanAlexander"]
[Result "1-0"]
[WhiteElo "2843"]
[BlackElo "2654"]
[TimeControl "180+1"]
[EndTime "11:47:19 PDT"]
[Termination "GMKrikor won by resignation"]

1. e4 {[%clk 0:03:00.1]} 1... c5 {[%clk 0:02:59.9]} 2. Nf3 {[%clk 0:02:59.8]}
2... e6 {[%clk 0:02:59.9]} 3. d4 {[%clk 0:02:59.8]} 3... cxd4 {[%clk 0:02:57.6]}
4. Nxd4 {[%clk 0:03:00.7]} 4... a6 {[%clk 0:02:57.5]} 5. Bd3 {[%clk 0:03:00.1]}
5... d6 {[%clk 0:02:56.5]} 6. O-O {[%clk 0:02:59.8]} 6... Nf6 {[%clk 0:02:56.8]}
7. c4 {[%clk 0:02:59.6]} 7... Bd7 {[%clk 0:02:56.1]} 8. Nc3 {[%clk 0:02:56.4]}
8... Nc6 {[%clk 0:02:56.7]} 9. Be3 {[%clk 0:02:52.8]} 9... Be7 {[%clk
0:02:56.5]} 10. Rc1 {[%clk 0:02:52.1]} 10... Rc8 {[%clk 0:02:55.1]} 11. f4
{[%clk 0:02:48.7]} 11... h5 {[%clk 0:02:44.4]} 12. h3 {[%clk 0:02:47.1]} 12...
h4 {[%clk 0:02:43.8]} 13. Qd2 {[%clk 0:02:37.6]} 13... Nh5 {[%clk 0:02:22.5]}
14. Nf3 {[%clk 0:02:30.4]} 14... Qa5 {[%clk 0:01:40.6]} 15. a3 {[%clk
0:02:23.9]} 15... Ng3 {[%clk 0:01:40.1]} 16. Rfe1 {[%clk 0:02:23.2]} 16... Qh5
{[%clk 0:01:39.3]} 17. b4 {[%clk 0:02:12.2]} 17... Rh6 {[%clk 0:01:22]} 18. Bf2
{[%clk 0:01:58.7]} 18... Rf6 {[%clk 0:01:14.2]} 19. Kh2 {[%clk 0:01:44.1]} 19...
Rh6 {[%clk 0:00:52.1]} 20. Qe3 {[%clk 0:01:36.9]} 20... Kf8 {[%clk 0:00:48.8]}
21. Nxh4 {[%clk 0:01:05.2]} 21... Bxh4 {[%clk 0:00:37.4]} 22. Bxg3 {[%clk
0:01:04.1]} 22... Bxg3+ {[%clk 0:00:37.3]} 23. Qxg3 {[%clk 0:01:00.7]} 23... Nd4
{[%clk 0:00:25.6]} 24. e5 {[%clk 0:00:47]} 24... dxe5 {[%clk 0:00:13.8]} 25.
Rxe5 {[%clk 0:00:42.7]} 25... Qh4 {[%clk 0:00:14.2]} 26. Qxh4 {[%clk 0:00:39.8]}
26... Rxh4 {[%clk 0:00:15.1]} 27. Kg3 {[%clk 0:00:37.3]} 27... Rh6 {[%clk
0:00:13.9]} 28. Rd1 {[%clk 0:00:33.9]} 28... Bc6 {[%clk 0:00:10.2]} 29. Kf2
{[%clk 0:00:29.9]} 29... Rf6 {[%clk 0:00:08.7]} 30. g3 {[%clk 0:00:24.8]} 30...
Rh6 {[%clk 0:00:04.5]} 31. h4 {[%clk 0:00:24.5]} 31... Rd8 {[%clk 0:00:03.5]}
32. Be4 {[%clk 0:00:20.3]} 32... f6 {[%clk 0:00:02.7]} 33. Rc5 {[%clk
0:00:20.2]} 33... e5 {[%clk 0:00:01.7]} 34. Bxc6 {[%clk 0:00:14.1]} 34... bxc6
{[%clk 0:00:02.6]} 35. fxe5 {[%clk 0:00:13.6]} 35... fxe5 {[%clk 0:00:03.5]} 36.
Rxe5 {[%clk 0:00:13.6]} 36... Rf6+ {[%clk 0:00:04.4]} 37. Kg2 {[%clk 0:00:14.2]}
37... Rdd6 {[%clk 0:00:03.5]} 38. Ne4 {[%clk 0:00:13.4]} 38... Nf3 {[%clk
0:00:03.9]} 39. Rxd6 {[%clk 0:00:07.4]} 39... Rxd6 {[%clk 0:00:02]} 40. Rf5+
{[%clk 0:00:07]} 40... Ke7 {[%clk 0:00:01.8]} 41. Nxd6 {[%clk 0:00:06.9]} 41...
Ne1+ {[%clk 0:00:01.3]} 42. Kf1 {[%clk 0:00:06]} 42... Kxd6 {[%clk 0:00:02.2]}
43. Kxe1 {[%clk 0:00:05.5]} 1-0

[Event "*** Titled Tuesday Blitz"]
[Site "Chess.com"]
[Date "2021.03.30"]
[Round "9"]
[White "geordie_derraugh"]
[Black "politeplayer"]
[Result "1-0"]
[WhiteElo "2434"]
[BlackElo "2211"]
[TimeControl "180+1"]
[EndTime "11:47:20 PDT"]
[Termination "geordie_derraugh won by resignation"]

1. e4 {[%clk 0:03:00.9]} 1... e5 {[%clk 0:02:59.7]} 2. Nf3 {[%clk 0:03:00.6]}
2... Nf6 {[%clk 0:03:00.2]} 3. Nxe5 {[%clk 0:03:00.6]} 3... d6 {[%clk
0:02:59.6]} 4. Nf3 {[%clk 0:03:00.8]} 4... Nxe4 {[%clk 0:02:59.8]} 5. d4 {[%clk
0:03:01.2]} 5... d5 {[%clk 0:02:59.8]} 6. Bd3 {[%clk 0:03:01.9]} 6... Bd6 {[%clk
0:02:57]} 7. O-O {[%clk 0:03:01.9]} 7... O-O {[%clk 0:02:56.7]} 8. c4 {[%clk
0:03:02.2]} 8... c6 {[%clk 0:02:54.6]} 9. Nc3 {[%clk 0:03:02.3]} 9... Nxc3
{[%clk 0:02:49.8]} 10. bxc3 {[%clk 0:03:02.4]} 10... dxc4 {[%clk 0:02:49.9]} 11.
Bxc4 {[%clk 0:02:54.9]} 11... Bf5 {[%clk 0:02:50.3]} 12. Bg5 {[%clk 0:02:51.9]}
12... Qa5 {[%clk 0:02:49.1]} 13. Qb3 {[%clk 0:02:49.1]} 13... Be4 {[%clk
0:02:15.8]} 14. Bh4 {[%clk 0:02:04.9]} 14... Bxf3 {[%clk 0:02:06.2]} 15. gxf3
{[%clk 0:02:05.8]} 15... Bxh2+ {[%clk 0:01:28]} 16. Kxh2 {[%clk 0:02:04.1]}
16... Qh5 {[%clk 0:01:28.1]} 17. Kg3 {[%clk 0:01:43.8]} 17... g5 {[%clk
0:01:26.5]} 18. Rh1 {[%clk 0:01:44.3]} 18... Nd7 {[%clk 0:01:11.9]} 19. Rag1
{[%clk 0:01:35.4]} 19... gxh4+ {[%clk 0:01:02.3]} 20. Rxh4 {[%clk 0:01:35.2]}
20... Qf5 {[%clk 0:01:02]} 21. Qxb7 {[%clk 0:01:29.6]} 21... Kh8 {[%clk
0:00:59.1]} 22. Rg4 {[%clk 0:01:25.5]} 22... Nf6 {[%clk 0:00:52.1]} 23. Qxc6
{[%clk 0:01:16]} 23... Rac8 {[%clk 0:00:47.1]} 24. Qb5 {[%clk 0:01:12.4]} 24...
Qxb5 {[%clk 0:00:37.5]} 25. Bxb5 {[%clk 0:01:13.3]} 25... Nxg4 {[%clk
0:00:37.4]} 26. fxg4 {[%clk 0:01:13.6]} 26... Rxc3+ {[%clk 0:00:37.5]} 27. f3
{[%clk 0:01:13.6]} 27... f5 {[%clk 0:00:35.7]} 28. g5 {[%clk 0:01:08.8]} 28...
Rd8 {[%clk 0:00:29.6]} 29. Rd1 {[%clk 0:01:07]} 29... Kg7 {[%clk 0:00:25]} 30.
Kf4 {[%clk 0:01:04]} 30... Kg6 {[%clk 0:00:21.8]} 31. Rd2 {[%clk 0:00:55.5]}
31... Rb8 {[%clk 0:00:18.7]} 32. Bd7 {[%clk 0:00:50.1]} 32... Rf8 {[%clk
0:00:15.9]} 33. Rh2 {[%clk 0:00:49.9]} 33... Rc4 {[%clk 0:00:12.8]} 34. Rh6+
{[%clk 0:00:47.9]} 34... Kg7 {[%clk 0:00:12.9]} 35. Rd6 {[%clk 0:00:43.3]} 35...
Rd8 {[%clk 0:00:11.2]} 36. Ke5 {[%clk 0:00:42.6]} 36... Rc7 {[%clk 0:00:10.7]}
37. Bxf5 {[%clk 0:00:42.5]} 37... Rxd6 {[%clk 0:00:10.2]} 38. Kxd6 {[%clk
0:00:43.4]} 38... Rf7 {[%clk 0:00:09.9]} 39. Ke6 {[%clk 0:00:40.1]} 39... Rb7
{[%clk 0:00:08.3]} 40. d5 {[%clk 0:00:40.2]} 40... Rb2 {[%clk 0:00:07.9]} 41. d6
{[%clk 0:00:34.2]} 41... Rxa2 {[%clk 0:00:07]} 42. Be4 {[%clk 0:00:34.3]} 42...
Ra6 {[%clk 0:00:05.3]} 43. f4 {[%clk 0:00:28.1]} 43... h5 {[%clk 0:00:04.3]} 44.
gxh6+ {[%clk 0:00:27.2]} 44... Kxh6 {[%clk 0:00:04.1]} 45. Ke7 {[%clk
0:00:27.6]} 45... Rxd6 {[%clk 0:00:03.1]} 46. Kxd6 {[%clk 0:00:27.9]} 46... a5
{[%clk 0:00:03.3]} 47. f5 {[%clk 0:00:21.5]} 47... Kg5 {[%clk 0:00:01.6]} 48.
Ke6 {[%clk 0:00:21.4]} 48... a4 {[%clk 0:00:02.1]} 49. Bb1 {[%clk 0:00:21]} 1-0

[Event "*** Titled Tuesday Blitz"]
[Site "Chess.com"]
[Date "2021.03.30"]
[Round "9"]
[White "Bhagya_2312"]
[Black "losersgame"]
[Result "1-0"]
[WhiteElo "2188"]
[BlackElo "2320"]
[TimeControl "180+1"]
[EndTime "11:47:22 PDT"]
[Termination "Bhagya_2312 won on time"]

1. e4 {[%clk 0:02:59.5]} 1... e5 {[%clk 0:02:59.1]} 2. Nf3 {[%clk 0:02:59.6]}
2... Nc6 {[%clk 0:02:59]} 3. Bc4 {[%clk 0:02:59.5]} 3... g6 {[%clk 0:02:58.9]}
4. O-O {[%clk 0:02:55.2]} 4... Bg7 {[%clk 0:02:57.8]} 5. c3 {[%clk 0:02:54.5]}
5... f5 {[%clk 0:02:33.6]} 6. d4 {[%clk 0:02:45]} 6... fxe4 {[%clk 0:02:31.5]}
7. Ng5 {[%clk 0:02:43.9]} 7... d5 {[%clk 0:02:30.5]} 8. Bb5 {[%clk 0:02:33.9]}
8... exd4 {[%clk 0:02:19.3]} 9. cxd4 {[%clk 0:02:30.3]} 9... Bd7 {[%clk
0:02:06.3]} 10. Bxc6 {[%clk 0:02:17]} 10... bxc6 {[%clk 0:02:05.7]} 11. Re1
{[%clk 0:01:47.4]} 11... h6 {[%clk 0:01:58.7]} 12. Nf3 {[%clk 0:01:47.2]} 12...
Ne7 {[%clk 0:01:47.1]} 13. Ne5 {[%clk 0:01:45.4]} 13... Bxe5 {[%clk 0:01:34.5]}
14. dxe5 {[%clk 0:01:43.8]} 14... Nf5 {[%clk 0:01:34.4]} 15. Nc3 {[%clk
0:01:25.8]} 15... O-O {[%clk 0:01:29.3]} 16. Be3 {[%clk 0:01:03.5]} 16... Qh4
{[%clk 0:01:23.4]} 17. g3 {[%clk 0:00:53.9]} 17... Qh3 {[%clk 0:01:17.6]} 18.
Nxe4 {[%clk 0:00:52]} 18... Nxe3 {[%clk 0:01:10]} 19. Rxe3 {[%clk 0:00:41.1]}
19... dxe4 {[%clk 0:01:09.8]} 20. Rxe4 {[%clk 0:00:38.8]} 20... Be6 {[%clk
0:00:44.6]} 21. Rh4 {[%clk 0:00:32.3]} 21... Qf5 {[%clk 0:00:43.7]} 22. Qe2
{[%clk 0:00:27.9]} 22... h5 {[%clk 0:00:39.5]} 23. Rf4 {[%clk 0:00:20.3]} 23...
Qg5 {[%clk 0:00:35.8]} 24. Rd4 {[%clk 0:00:15.1]} 24... Rae8 {[%clk 0:00:31.8]}
25. f4 {[%clk 0:00:14.8]} 25... Qf5 {[%clk 0:00:30.4]} 26. Rad1 {[%clk 0:00:14]}
26... Bd5 {[%clk 0:00:30.3]} 27. b4 {[%clk 0:00:13]} 27... a6 {[%clk 0:00:29.3]}
28. a4 {[%clk 0:00:12.7]} 28... h4 {[%clk 0:00:15.5]} 29. b5 {[%clk 0:00:12]}
29... axb5 {[%clk 0:00:10.9]} 30. axb5 {[%clk 0:00:12.1]} 30... hxg3 {[%clk
0:00:11]} 31. hxg3 {[%clk 0:00:11.6]} 31... Qh3 {[%clk 0:00:10.8]} 32. Qh2
{[%clk 0:00:11.7]} 32... Qxh2+ {[%clk 0:00:11]} 33. Kxh2 {[%clk 0:00:12]} 33...
Re7 {[%clk 0:00:11]} 34. bxc6 {[%clk 0:00:12.2]} 34... Rh7+ {[%clk 0:00:10.8]}
35. Kg1 {[%clk 0:00:11.8]} 35... Rh1+ {[%clk 0:00:10.8]} 36. Kf2 {[%clk
0:00:12.7]} 36... Rxd1 {[%clk 0:00:10.9]} 37. Rxd1 {[%clk 0:00:12.5]} 37... Bxc6
{[%clk 0:00:11.2]} 38. Rc1 {[%clk 0:00:13.1]} 38... Be4 {[%clk 0:00:09.6]} 39.
Rxc7 {[%clk 0:00:13.6]} 39... Ra8 {[%clk 0:00:07]} 40. Ke3 {[%clk 0:00:13.6]}
40... Bf5 {[%clk 0:00:06.5]} 41. Kd4 {[%clk 0:00:13.7]} 41... Ra3 {[%clk
0:00:04.9]} 42. Kc5 {[%clk 0:00:12.2]} 42... Rxg3 {[%clk 0:00:04.5]} 43. Kd6
{[%clk 0:00:12.6]} 43... Rd3+ {[%clk 0:00:04.6]} 44. Ke7 {[%clk 0:00:12.7]}
44... Kg7 {[%clk 0:00:04.8]} 45. Ke8+ {[%clk 0:00:12.1]} 45... Kh6 {[%clk
0:00:04.4]} 46. Kf7 {[%clk 0:00:12.1]} 46... Re3 {[%clk 0:00:02.5]} 47. Kf6
{[%clk 0:00:12]} 1-0